[Event "Early-Titled-Tuesday-Blitz-March-12-2024"]
[Site "Chess.com"]
[Date "2024.03.12"]
[Round "7"]
[White "JoliyRoger"]
[Black "amelia91"]
[Result "1-0"]
[WhiteElo "2424"]
[BlackElo "2085"]
[TimeControl "180+1"]
[EndTime "9:16:39 PDT"]
[Termination "JoliyRoger won on time"]

1. d4 {[%clk 0:03:00.9]} 1... Nf6 {[%clk 0:02:58.5]} 2. c4 {[%clk 0:03:01.4]}
2... e6 {[%clk 0:02:58.3]} 3. Nc3 {[%clk 0:03:01.9]} 3... Bb4 {[%clk 0:02:54.3]}
4. a3 {[%clk 0:03:02.3]} 4... Bxc3+ {[%clk 0:02:52.9]} 5. bxc3 {[%clk
0:03:03.2]} 5... b6 {[%clk 0:02:50.4]} 6. f3 {[%clk 0:03:03.4]} 6... Nc6 {[%clk
0:02:36.1]} 7. e4 {[%clk 0:03:02]} 7... d6 {[%clk 0:02:30]} 8. Bg5 {[%clk
0:03:00.7]} 8... e5 {[%clk 0:02:27.8]} 9. Ne2 {[%clk 0:02:48.5]} 9... O-O {[%clk
0:02:26]} 10. Ng3 {[%clk 0:02:48.9]} 10... h6 {[%clk 0:02:23.9]} 11. Be3 {[%clk
0:02:47.3]} 11... Ba6 {[%clk 0:02:20.2]} 12. Bd3 {[%clk 0:02:46]} 12... Na5
{[%clk 0:02:16.5]} 13. Qe2 {[%clk 0:02:46.2]} 13... c5 {[%clk 0:02:00.4]} 14.
O-O {[%clk 0:02:42.5]} 14... cxd4 {[%clk 0:01:52.1]} 15. cxd4 {[%clk 0:02:42.5]}
15... Rc8 {[%clk 0:01:43.7]} 16. Rac1 {[%clk 0:02:29.9]} 16... exd4 {[%clk
0:01:34.3]} 17. Bxd4 {[%clk 0:02:13.7]} 17... Nb3 {[%clk 0:01:31.5]} 18. Bb2
{[%clk 0:02:09]} 18... Nxc1 {[%clk 0:01:30.3]} 19. Rxc1 {[%clk 0:02:09.9]} 19...
Nd7 {[%clk 0:01:22.6]} 20. f4 {[%clk 0:02:07]} 20... Qh4 {[%clk 0:01:04.5]} 21.
Bxg7 {[%clk 0:01:58.2]} 21... Qxf4 {[%clk 0:00:49.5]} 22. Rf1 {[%clk 0:01:58.6]}
22... Qg5 {[%clk 0:00:44.5]} 23. Nf5 {[%clk 0:01:51.8]} 23... Ne5 {[%clk
0:00:21.3]} 24. Bxh6 {[%clk 0:01:50.2]} 24... Qg4 {[%clk 0:00:15.1]} 25. Qxg4+
{[%clk 0:01:16.6]} 25... Nxg4 {[%clk 0:00:16]} 26. Bxf8 {[%clk 0:01:17]} 26...
Kxf8 {[%clk 0:00:14.8]} 27. Nxd6 {[%clk 0:01:12.7]} 27... Rc7 {[%clk 0:00:14.7]}
28. Be2 {[%clk 0:01:03.3]} 28... Ne5 {[%clk 0:00:13.8]} 29. Rf5 {[%clk
0:01:00.2]} 29... Rc5 {[%clk 0:00:10.7]} 30. Nb5 {[%clk 0:00:45.8]} 30... Ke7
{[%clk 0:00:08.4]} 31. Nxa7 {[%clk 0:00:42.8]} 31... Bxc4 {[%clk 0:00:06]} 32.
Rxe5+ {[%clk 0:00:32.9]} 32... Rxe5 {[%clk 0:00:06.9]} 33. Bxc4 {[%clk
0:00:16.7]} 33... Rxe4 {[%clk 0:00:06.1]} 34. Bb5 {[%clk 0:00:15.4]} 34... Re1+
{[%clk 0:00:04.3]} 35. Kf2 {[%clk 0:00:15.7]} 35... Ra1 {[%clk 0:00:04.4]} 36.
a4 {[%clk 0:00:16.2]} 36... Ra2+ {[%clk 0:00:04.4]} 37. Kg3 {[%clk 0:00:16.5]}
37... Kd6 {[%clk 0:00:04.5]} 38. Nc8+ {[%clk 0:00:13.8]} 38... Ke5 {[%clk
0:00:04.4]} 39. Nxb6 {[%clk 0:00:13.9]} 39... f5 {[%clk 0:00:03.2]} 40. Nc4+
{[%clk 0:00:13.6]} 40... Kd4 {[%clk 0:00:02.1]} 41. Nd6 {[%clk 0:00:14]} 1-0

[Event "Early-Titled-Tuesday-Blitz-March-12-2024"]
[Site "Chess.com"]
[Date "2024.03.12"]
[Round "7"]
[White "SuperPower2011"]
[Black "HajiyevKanan"]
[Result "1-0"]
[WhiteElo "2803"]
[BlackElo "2574"]
[TimeControl "180+1"]
[EndTime "9:16:44 PDT"]
[Termination "SuperPower2011 won by resignation"]

1. e4 {[%clk 0:03:00.9]} 1... c6 {[%clk 0:02:58.7]} 2. d4 {[%clk 0:02:57.9]}
2... d5 {[%clk 0:02:59.6]} 3. Nc3 {[%clk 0:02:58.6]} 3... a6 {[%clk 0:03:00]} 4.
Nf3 {[%clk 0:02:57]} 4... Bg4 {[%clk 0:02:59]} 5. exd5 {[%clk 0:02:53.6]} 5...
cxd5 {[%clk 0:02:59.9]} 6. Be2 {[%clk 0:02:52.6]} 6... e6 {[%clk 0:02:59.7]} 7.
h3 {[%clk 0:02:49.7]} 7... Bh5 {[%clk 0:02:59.5]} 8. Ne5 {[%clk 0:02:44]} 8...
Bxe2 {[%clk 0:03:00.4]} 9. Nxe2 {[%clk 0:02:44.6]} 9... Nf6 {[%clk 0:03:00.4]}
10. O-O {[%clk 0:02:44.2]} 10... Bd6 {[%clk 0:03:00.7]} 11. Bf4 {[%clk
0:02:44.3]} 11... O-O {[%clk 0:03:00.8]} 12. c3 {[%clk 0:02:44.5]} 12... Nc6
{[%clk 0:03:00.7]} 13. Qd3 {[%clk 0:02:37.2]} 13... Qc7 {[%clk 0:02:58.4]} 14.
Nxc6 {[%clk 0:02:30.9]} 14... Bxf4 {[%clk 0:02:55.7]} 15. Nxf4 {[%clk
0:02:31.2]} 15... Qxf4 {[%clk 0:02:52]} 16. Ne5 {[%clk 0:02:31.6]} 16... b5
{[%clk 0:02:42.6]} 17. Rae1 {[%clk 0:02:30]} 17... Ne4 {[%clk 0:02:39.8]} 18.
Re3 {[%clk 0:02:28.5]} 18... Ra7 {[%clk 0:02:21.4]} 19. Qe2 {[%clk 0:02:17.1]}
19... Rc7 {[%clk 0:02:16.5]} 20. Nd3 {[%clk 0:02:16.3]} 20... Qg5 {[%clk
0:02:12]} 21. Qe1 {[%clk 0:02:15.4]} 21... Rfc8 {[%clk 0:01:58.8]} 22. f3 {[%clk
0:02:13.8]} 22... Nd6 {[%clk 0:01:41.1]} 23. Re5 {[%clk 0:02:08.1]} 23... Qg6
{[%clk 0:01:35.2]} 24. Nf4 {[%clk 0:02:05.3]} 24... Qf6 {[%clk 0:01:32.6]} 25.
Nh5 {[%clk 0:01:32.1]} 25... Qg6 {[%clk 0:01:32.5]} 26. Nf4 {[%clk 0:01:26.1]}
26... Qh6 {[%clk 0:01:32.7]} 27. Qg3 {[%clk 0:01:18.9]} 27... Nf5 {[%clk
0:01:18.9]} 28. Rxf5 {[%clk 0:01:00.3]} 28... exf5 {[%clk 0:01:19.8]} 29. Nxd5
{[%clk 0:01:00.9]} 29... Rd7 {[%clk 0:01:16.4]} 30. Qe5 {[%clk 0:00:45]} 30...
Rcd8 {[%clk 0:01:00.2]} 31. Ne7+ {[%clk 0:00:37.1]} 31... Kf8 {[%clk 0:00:56.9]}
32. Nxf5 {[%clk 0:00:38]} 32... Qg5 {[%clk 0:00:49.6]} 33. Re1 {[%clk
0:00:35.6]} 33... f6 {[%clk 0:00:41.4]} 34. Qc5+ {[%clk 0:00:34.5]} 34... Kg8
{[%clk 0:00:41.1]} 35. h4 {[%clk 0:00:27.6]} 35... Qf4 {[%clk 0:00:28.6]} 36.
Re7 {[%clk 0:00:21.5]} 36... Rxe7 {[%clk 0:00:17.4]} 37. Qxe7 {[%clk 0:00:22.4]}
37... Qxf5 {[%clk 0:00:08.3]} 38. Qxd8+ {[%clk 0:00:22.1]} 38... Kf7 {[%clk
0:00:09.2]} 39. Qc7+ {[%clk 0:00:22.8]} 39... Kg6 {[%clk 0:00:09.7]} 40. Qg3+
{[%clk 0:00:17.3]} 40... Kh6 {[%clk 0:00:09]} 41. Qe1 {[%clk 0:00:16.9]} 41...
Qc2 {[%clk 0:00:07.5]} 42. Qe3+ {[%clk 0:00:13.3]} 42... Kg6 {[%clk 0:00:08.1]}
43. Qe4+ {[%clk 0:00:13.6]} 43... Qxe4 {[%clk 0:00:05.4]} 44. fxe4 {[%clk
0:00:14.5]} 44... Kh5 {[%clk 0:00:05.9]} 45. d5 {[%clk 0:00:14.4]} 45... Kg6
{[%clk 0:00:06.1]} 46. Kf2 {[%clk 0:00:15.1]} 46... f5 {[%clk 0:00:06.6]} 47. e5
{[%clk 0:00:15.4]} 1-0

[Event "Early-Titled-Tuesday-Blitz-March-12-2024"]
[Site "Chess.com"]
[Date "2024.03.12"]
[Round "7"]
[White "VladimirKramnik"]
[Black "GalaxyRoman"]
[Result "1-0"]
[WhiteElo "2990"]
[BlackElo "2721"]
[TimeControl "180+1"]
[EndTime "9:16:46 PDT"]
[Termination "VladimirKramnik won by resignation"]

1. Nf3 {[%clk 0:03:00.9]} 1... d5 {[%clk 0:02:58.7]} 2. g3 {[%clk 0:03:00.7]}
2... Bg4 {[%clk 0:02:59.2]} 3. Bg2 {[%clk 0:03:00.7]} 3... e6 {[%clk 0:02:59.1]}
4. d3 {[%clk 0:02:56.8]} 4... Nd7 {[%clk 0:02:58.8]} 5. h3 {[%clk 0:02:54.9]}
5... Bh5 {[%clk 0:02:57.5]} 6. O-O {[%clk 0:02:52.8]} 6... c6 {[%clk 0:02:56.6]}
7. Qe1 {[%clk 0:02:51.7]} 7... Ngf6 {[%clk 0:02:48.6]} 8. e4 {[%clk 0:02:51.5]}
8... dxe4 {[%clk 0:02:45.3]} 9. dxe4 {[%clk 0:02:51.1]} 9... Bxf3 {[%clk
0:02:46]} 10. Bxf3 {[%clk 0:02:50.6]} 10... e5 {[%clk 0:02:46.6]} 11. Kg2 {[%clk
0:02:43.9]} 11... Be7 {[%clk 0:02:44.9]} 12. Nd2 {[%clk 0:02:43.6]} 12... O-O
{[%clk 0:02:44.9]} 13. Nc4 {[%clk 0:02:40.2]} 13... Qc7 {[%clk 0:02:42.2]} 14.
Ne3 {[%clk 0:02:32.2]} 14... Rfd8 {[%clk 0:02:34.1]} 15. a4 {[%clk 0:02:29.6]}
15... Nc5 {[%clk 0:02:27.9]} 16. Nf5 {[%clk 0:02:27.1]} 16... Ne6 {[%clk
0:02:19.3]} 17. c3 {[%clk 0:02:02.5]} 17... Bf8 {[%clk 0:02:10.5]} 18. Qe2
{[%clk 0:01:55.8]} 18... Rd7 {[%clk 0:02:02.5]} 19. h4 {[%clk 0:01:50.7]} 19...
Rad8 {[%clk 0:01:40.8]} 20. a5 {[%clk 0:01:50.6]} 20... h5 {[%clk 0:01:11.7]}
21. b4 {[%clk 0:01:23.7]} 21... g6 {[%clk 0:01:01.4]} 22. Ne3 {[%clk 0:01:21.5]}
22... b5 {[%clk 0:00:22.5]} 23. axb6 {[%clk 0:01:19.5]} 23... axb6 {[%clk
0:00:22.8]} 24. Qc2 {[%clk 0:01:12.1]} 24... b5 {[%clk 0:00:19]} 25. Rd1 {[%clk
0:01:06.1]} 25... Rxd1 {[%clk 0:00:17.7]} 26. Bxd1 {[%clk 0:01:03.7]} 26... Qd7
{[%clk 0:00:12.8]} 27. Bf3 {[%clk 0:00:56.4]} 27... Qd3 {[%clk 0:00:12.1]} 28.
Qxd3 {[%clk 0:00:46.2]} 28... Rxd3 {[%clk 0:00:13]} 29. Nd1 {[%clk 0:00:22.8]}
29... Nd7 {[%clk 0:00:07.1]} 30. Be3 {[%clk 0:00:18.4]} 30... c5 {[%clk
0:00:05.6]} 31. Be2 {[%clk 0:00:18.3]} 31... Rd6 {[%clk 0:00:05.7]} 32. Bxb5
{[%clk 0:00:18.2]} 32... cxb4 {[%clk 0:00:06.3]} 33. cxb4 {[%clk 0:00:18.7]}
33... Nd4 {[%clk 0:00:06.8]} 34. Bxd7 {[%clk 0:00:18]} 34... Rxd7 {[%clk
0:00:06.8]} 35. Rb1 {[%clk 0:00:17.9]} 35... Nb5 {[%clk 0:00:06.7]} 36. Bc5
{[%clk 0:00:13.6]} 36... Bh6 {[%clk 0:00:05.7]} 37. Ne3 {[%clk 0:00:12.7]} 37...
Bxe3 {[%clk 0:00:05.3]} 38. Bxe3 {[%clk 0:00:12.2]} 38... Rd3 {[%clk 0:00:04.8]}
39. Kf1 {[%clk 0:00:10.4]} 39... Ra3 {[%clk 0:00:04.1]} 40. Rc1 {[%clk
0:00:10.1]} 40... Rb3 {[%clk 0:00:04.6]} 41. Rc8+ {[%clk 0:00:10]} 41... Kg7
{[%clk 0:00:04.5]} 42. Bc5 {[%clk 0:00:10.6]} 42... Rb2 {[%clk 0:00:04.9]} 43.
Bf8+ {[%clk 0:00:08.8]} 43... Kf6 {[%clk 0:00:03.8]} 44. Rc6+ {[%clk 0:00:08.4]}
1-0

[Event "Early-Titled-Tuesday-Blitz-March-12-2024"]
[Site "Chess.com"]
[Date "2024.03.12"]
[Round "7"]
[White "kidagent"]
[Black "Rainbow2014"]
[Result "1-0"]
[WhiteElo "2334"]
[BlackElo "2437"]
[TimeControl "180+1"]
[EndTime "9:16:46 PDT"]
[Termination "kidagent won on time"]

1. e4 {[%clk 0:03:00.9]} 1... c5 {[%clk 0:02:48]} 2. Nf3 {[%clk 0:03:00.3]} 2...
d6 {[%clk 0:02:48.4]} 3. d4 {[%clk 0:03:01]} 3... cxd4 {[%clk 0:02:48.9]} 4.
Nxd4 {[%clk 0:03:01.7]} 4... Nf6 {[%clk 0:02:48.8]} 5. Nc3 {[%clk 0:03:02.4]}
5... a6 {[%clk 0:02:49.3]} 6. h3 {[%clk 0:03:02.5]} 6... e5 {[%clk 0:02:49.4]}
7. Nde2 {[%clk 0:03:00.9]} 7... Be6 {[%clk 0:02:49.6]} 8. g4 {[%clk 0:03:00.7]}
8... Nbd7 {[%clk 0:02:49.4]} 9. Bg2 {[%clk 0:03:00.2]} 9... Nc5 {[%clk
0:02:48.2]} 10. Ng3 {[%clk 0:02:57.1]} 10... Be7 {[%clk 0:02:42]} 11. O-O {[%clk
0:02:53.4]} 11... O-O {[%clk 0:02:41.1]} 12. g5 {[%clk 0:02:49.4]} 12... Nfd7
{[%clk 0:02:41]} 13. h4 {[%clk 0:02:49.6]} 13... b5 {[%clk 0:02:41.1]} 14. Nd5
{[%clk 0:02:48.4]} 14... Bxd5 {[%clk 0:02:40.2]} 15. exd5 {[%clk 0:02:46.4]}
15... Nb6 {[%clk 0:02:39.6]} 16. b3 {[%clk 0:02:38.9]} 16... f5 {[%clk
0:02:38.8]} 17. f4 {[%clk 0:02:37.8]} 17... Nbd7 {[%clk 0:02:27.6]} 18. fxe5
{[%clk 0:02:32.1]} 18... Nxe5 {[%clk 0:02:21.9]} 19. Nxf5 {[%clk 0:02:30.4]}
19... Rc8 {[%clk 0:02:11.2]} 20. Bb2 {[%clk 0:02:26.3]} 20... b4 {[%clk
0:02:03.8]} 21. Bxe5 {[%clk 0:02:24.3]} 21... dxe5 {[%clk 0:02:02.1]} 22. d6
{[%clk 0:02:24.4]} 22... Rxf5 {[%clk 0:02:02.2]} 23. Rxf5 {[%clk 0:02:08.8]}
23... Bxd6 {[%clk 0:02:02.1]} 24. Qd5+ {[%clk 0:02:08.4]} 24... Kh8 {[%clk
0:02:02.5]} 25. Rd1 {[%clk 0:02:08.1]} 25... Qd7 {[%clk 0:02:03]} 26. Bh3 {[%clk
0:02:06.3]} 26... Qa7 {[%clk 0:01:51.4]} 27. Kh1 {[%clk 0:02:01.5]} 27... Bf8
{[%clk 0:01:35.1]} 28. Qd8 {[%clk 0:01:41.5]} 28... Qa8+ {[%clk 0:00:52.2]} 29.
Qd5 {[%clk 0:01:40.8]} 29... Ne4 {[%clk 0:00:35.8]} 30. Qxa8 {[%clk 0:01:34.3]}
30... Rxa8 {[%clk 0:00:36.7]} 31. Kh2 {[%clk 0:01:30.2]} 31... Nc3 {[%clk
0:00:34]} 32. Rd7 {[%clk 0:01:27.4]} 32... e4 {[%clk 0:00:30.5]} 33. Bg2 {[%clk
0:01:21.5]} 33... Re8 {[%clk 0:00:28.6]} 34. Rf1 {[%clk 0:01:02.8]} 34... e3
{[%clk 0:00:26.7]} 35. Re1 {[%clk 0:01:02.4]} 35... g6 {[%clk 0:00:13]} 36. Rd3
{[%clk 0:00:57.4]} 36... Bc5 {[%clk 0:00:10.6]} 37. a3 {[%clk 0:00:48.3]} 37...
a5 {[%clk 0:00:10.1]} 38. axb4 {[%clk 0:00:48]} 38... axb4 {[%clk 0:00:11]} 39.
Bf3 {[%clk 0:00:40.8]} 39... e2 {[%clk 0:00:06.8]} 40. Kg2 {[%clk 0:00:40.2]}
40... h6 {[%clk 0:00:02.9]} 41. gxh6 {[%clk 0:00:38]} 41... Kh7 {[%clk
0:00:03.3]} 42. Rxc3 {[%clk 0:00:21.8]} 42... bxc3 {[%clk 0:00:02.9]} 43. Rxe2
{[%clk 0:00:22.3]} 43... Rf8 {[%clk 0:00:02.7]} 44. Re5 {[%clk 0:00:18]} 44...
Bd4 {[%clk 0:00:02.7]} 45. Rd5 {[%clk 0:00:18.1]} 45... Bf6 {[%clk 0:00:03.1]}
46. h5 {[%clk 0:00:17.5]} 46... g5 {[%clk 0:00:02.3]} 47. Be4+ {[%clk
0:00:16.9]} 47... Kxh6 {[%clk 0:00:02.4]} 48. Bg6 {[%clk 0:00:17.6]} 48... Bg7
{[%clk 0:00:01.5]} 49. Rd6 {[%clk 0:00:17.5]} 1-0

[Event "Early-Titled-Tuesday-Blitz-March-12-2024"]
[Site "Chess.com"]
[Date "2024.03.12"]
[Round "7"]
[White "AsaHoffmann"]
[Black "jk13"]
[Result "0-1"]
[WhiteElo "2389"]
[BlackElo "2686"]
[TimeControl "180+1"]
[EndTime "9:16:53 PDT"]
[Termination "jk13 won by checkmate"]

1. d4 {[%clk 0:02:47.7]} 1... Nf6 {[%clk 0:02:57.9]} 2. Bg5 {[%clk 0:02:43.5]}
2... Ne4 {[%clk 0:02:58.3]} 3. Bf4 {[%clk 0:02:43.3]} 3... Nc6 {[%clk
0:02:58.8]} 4. f3 {[%clk 0:02:40.3]} 4... Nf6 {[%clk 0:02:58.7]} 5. d5 {[%clk
0:02:37.2]} 5... e5 {[%clk 0:02:56.3]} 6. Bg5 {[%clk 0:02:32.8]} 6... Nb8 {[%clk
0:02:52.6]} 7. e4 {[%clk 0:02:30.9]} 7... Bc5 {[%clk 0:02:53]} 8. Nc3 {[%clk
0:02:21.8]} 8... d6 {[%clk 0:02:52.6]} 9. Na4 {[%clk 0:02:14.2]} 9... Bd4 {[%clk
0:02:44.1]} 10. c3 {[%clk 0:02:10.8]} 10... Bxg1 {[%clk 0:02:36]} 11. Rxg1
{[%clk 0:02:10.5]} 11... Nbd7 {[%clk 0:02:29.2]} 12. c4 {[%clk 0:02:08.5]} 12...
a5 {[%clk 0:02:24.9]} 13. Nc3 {[%clk 0:02:07.7]} 13... Nc5 {[%clk 0:02:25]} 14.
Qd2 {[%clk 0:01:59.8]} 14... h6 {[%clk 0:02:18.8]} 15. Be3 {[%clk 0:01:59]}
15... Nfd7 {[%clk 0:02:12.4]} 16. Be2 {[%clk 0:01:55]} 16... Nb6 {[%clk
0:02:09.4]} 17. g3 {[%clk 0:01:51.2]} 17... f5 {[%clk 0:02:07.7]} 18. O-O-O
{[%clk 0:01:45.4]} 18... Qf6 {[%clk 0:01:50]} 19. Bxc5 {[%clk 0:01:37.8]} 19...
dxc5 {[%clk 0:01:50.2]} 20. Nb5 {[%clk 0:01:36]} 20... O-O {[%clk 0:01:36.1]}
21. Nxc7 {[%clk 0:01:28.3]} 21... Rb8 {[%clk 0:01:36.6]} 22. d6 {[%clk
0:01:24.4]} 22... Bd7 {[%clk 0:01:33.5]} 23. Qxa5 {[%clk 0:01:20.5]} 23... Nc8
{[%clk 0:01:29.8]} 24. Qxc5 {[%clk 0:01:19.7]} 24... Kh8 {[%clk 0:01:20.6]} 25.
Nd5 {[%clk 0:00:50.7]} 25... Qf7 {[%clk 0:01:13.6]} 26. Rgf1 {[%clk 0:00:42.6]}
26... Re8 {[%clk 0:01:00.7]} 27. Nc7 {[%clk 0:00:40.1]} 27... Rd8 {[%clk
0:00:57.3]} 28. Qd5 {[%clk 0:00:39.9]} 28... Qf6 {[%clk 0:00:55.5]} 29. c5
{[%clk 0:00:39.2]} 29... Na7 {[%clk 0:00:53.7]} 30. Bc4 {[%clk 0:00:37.1]} 30...
Rf8 {[%clk 0:00:50.1]} 31. a3 {[%clk 0:00:30.5]} 31... Nc6 {[%clk 0:00:50.5]}
32. Rd2 {[%clk 0:00:28.3]} 32... Rbd8 {[%clk 0:00:48.4]} 33. Rfd1 {[%clk
0:00:27.9]} 33... Bc8 {[%clk 0:00:48.9]} 34. Bb5 {[%clk 0:00:27.4]} 34... Bd7
{[%clk 0:00:46.6]} 35. b4 {[%clk 0:00:27]} 35... fxe4 {[%clk 0:00:45.6]} 36.
fxe4 {[%clk 0:00:26.6]} 36... Qf3 {[%clk 0:00:44.3]} 37. Qd3 {[%clk 0:00:26]}
37... Qf6 {[%clk 0:00:43]} 38. Bxc6 {[%clk 0:00:25.2]} 38... bxc6 {[%clk
0:00:42.4]} 39. a4 {[%clk 0:00:24.3]} 39... Rb8 {[%clk 0:00:42]} 40. Rb2 {[%clk
0:00:24.3]} 40... Qg5+ {[%clk 0:00:39.5]} 41. Qd2 {[%clk 0:00:23.8]} 41... Qg6
{[%clk 0:00:38.9]} 42. Qe3 {[%clk 0:00:23.5]} 42... Bg4 {[%clk 0:00:38.3]} 43.
Rdd2 {[%clk 0:00:22.3]} 43... Rf3 {[%clk 0:00:38.6]} 44. Qe1 {[%clk 0:00:20.4]}
44... Qf7 {[%clk 0:00:37.9]} 45. Rf2 {[%clk 0:00:19.6]} 45... Qc4+ {[%clk
0:00:37.7]} 46. Kb1 {[%clk 0:00:19.8]} 46... Rd3 {[%clk 0:00:33.6]} 47. Rfc2
{[%clk 0:00:19.3]} 47... Qd4 {[%clk 0:00:32.1]} 48. Rc1 {[%clk 0:00:18.8]} 48...
Re3 {[%clk 0:00:30]} 49. Qd2 {[%clk 0:00:18.5]} 49... Qxe4+ {[%clk 0:00:30.3]}
50. Qc2 {[%clk 0:00:18.4]} 50... Qf3 {[%clk 0:00:24.3]} 51. b5 {[%clk 0:00:17]}
51... Bf5 {[%clk 0:00:24.1]} 52. b6 {[%clk 0:00:15.4]} 52... Bxc2+ {[%clk
0:00:23.4]} 53. Rcxc2 {[%clk 0:00:15.5]} 53... Ra3 {[%clk 0:00:21.3]} 54. d7
{[%clk 0:00:14.1]} 54... Qd1+ {[%clk 0:00:20.9]} 55. Rc1 {[%clk 0:00:13.9]}
55... Qxd7 {[%clk 0:00:20.9]} 56. Re2 {[%clk 0:00:10.2]} 56... Qd3+ {[%clk
0:00:20.9]} 57. Rec2 {[%clk 0:00:09.5]} 57... Rb3+ {[%clk 0:00:19.6]} 58. Ka2
{[%clk 0:00:09.1]} 58... Ra3+ {[%clk 0:00:19.7]} 59. Kb2 {[%clk 0:00:08.3]}
59... Qb3# {[%clk 0:00:19.5]} 0-1

[Event "Early-Titled-Tuesday-Blitz-March-12-2024"]
[Site "Chess.com"]
[Date "2024.03.12"]
[Round "7"]
[White "Cryptinz"]
[Black "nekotyanof"]
[Result "0-1"]
[WhiteElo "2514"]
[BlackElo "2651"]
[TimeControl "180+1"]
[EndTime "9:16:54 PDT"]
[Termination "nekotyanof won on time"]

1. e4 {[%clk 0:03:00.9]} 1... Nf6 {[%clk 0:02:58.8]} 2. e5 {[%clk 0:02:59.1]}
2... Nd5 {[%clk 0:02:58.7]} 3. Nc3 {[%clk 0:03:00]} 3... e6 {[%clk 0:02:55]} 4.
Nf3 {[%clk 0:02:58.3]} 4... d6 {[%clk 0:02:55.3]} 5. Nxd5 {[%clk 0:02:56.6]}
5... exd5 {[%clk 0:02:55.6]} 6. d4 {[%clk 0:02:55.3]} 6... Bf5 {[%clk
0:02:50.7]} 7. Bd3 {[%clk 0:02:54.8]} 7... Qd7 {[%clk 0:02:48.4]} 8. Bg5 {[%clk
0:02:48.6]} 8... Nc6 {[%clk 0:02:46.8]} 9. exd6 {[%clk 0:02:42]} 9... Bxd6
{[%clk 0:02:46.7]} 10. Qe2+ {[%clk 0:02:42]} 10... Be6 {[%clk 0:02:42.5]} 11. c3
{[%clk 0:02:35.6]} 11... h6 {[%clk 0:02:41.7]} 12. Bh4 {[%clk 0:02:34.5]} 12...
g5 {[%clk 0:02:41.8]} 13. Bg3 {[%clk 0:02:34.8]} 13... O-O-O {[%clk 0:02:42.4]}
14. O-O-O {[%clk 0:02:33.3]} 14... Rde8 {[%clk 0:02:40.7]} 15. Rhe1 {[%clk
0:02:23.8]} 15... Bg4 {[%clk 0:02:34.2]} 16. Qc2 {[%clk 0:02:18.4]} 16... Bxg3
{[%clk 0:02:26.5]} 17. hxg3 {[%clk 0:02:19.3]} 17... Re6 {[%clk 0:02:25]} 18.
Rxe6 {[%clk 0:02:01.5]} 18... fxe6 {[%clk 0:02:22.6]} 19. Re1 {[%clk 0:01:57.3]}
19... Bxf3 {[%clk 0:02:17.4]} 20. gxf3 {[%clk 0:01:58.2]} 20... Rf8 {[%clk
0:02:13.8]} 21. Qe2 {[%clk 0:01:57.9]} 21... Rf6 {[%clk 0:02:14.1]} 22. f4
{[%clk 0:01:48]} 22... gxf4 {[%clk 0:02:11.8]} 23. gxf4 {[%clk 0:01:48.9]} 23...
Qd6 {[%clk 0:02:10.2]} 24. f5 {[%clk 0:01:29.9]} 24... exf5 {[%clk 0:02:10.3]}
25. Qh5 {[%clk 0:01:20.2]} 25... Qf4+ {[%clk 0:01:48.4]} 26. Kb1 {[%clk
0:01:20.2]} 26... Nd8 {[%clk 0:01:37.6]} 27. Re7 {[%clk 0:00:56.7]} 27... Qg4
{[%clk 0:01:14.1]} 28. Be2 {[%clk 0:00:40.9]} 28... Qxh5 {[%clk 0:01:07.3]} 29.
Bxh5 {[%clk 0:00:41.8]} 29... Re6 {[%clk 0:00:43.8]} 30. Rh7 {[%clk 0:00:33.6]}
30... Re1+ {[%clk 0:00:38.3]} 31. Kc2 {[%clk 0:00:33.7]} 31... Rf1 {[%clk
0:00:39.2]} 32. f3 {[%clk 0:00:29.3]} 32... Ne6 {[%clk 0:00:33.4]} 33. Rxh6
{[%clk 0:00:27.3]} 33... Nf4 {[%clk 0:00:31.5]} 34. Bf7 {[%clk 0:00:09.5]} 34...
Rxf3 {[%clk 0:00:26.6]} 35. Rf6 {[%clk 0:00:09.8]} 35... Rf2+ {[%clk 0:00:23.7]}
36. Kb3 {[%clk 0:00:10.4]} 36... Nd3 {[%clk 0:00:23.8]} 37. Bxd5 {[%clk
0:00:09.7]} 37... f4 {[%clk 0:00:16.6]} 38. Be6+ {[%clk 0:00:08.6]} 38... Kd8
{[%clk 0:00:16]} 39. Rf7 {[%clk 0:00:08.5]} 39... b5 {[%clk 0:00:10.5]} 40. Rd7+
{[%clk 0:00:06.8]} 40... Ke8 {[%clk 0:00:11.1]} 41. Rxc7 {[%clk 0:00:05.2]}
41... f3 {[%clk 0:00:11.7]} 42. Rxa7 {[%clk 0:00:02.9]} 42... Rxb2+ {[%clk
0:00:09.5]} 43. Ka3 {[%clk 0:00:03.2]} 43... Re2 {[%clk 0:00:09.8]} 44. Bd7+
{[%clk 0:00:02.6]} 44... Kf8 {[%clk 0:00:08.3]} 45. Bxb5 {[%clk 0:00:02.2]}
45... f2 {[%clk 0:00:08.8]} 0-1